Cogmind - Beta 10.2 @@@ ROGUE MODE // 2021.08.31 @ 22:24:16 Player: Cracklepappy Result: Destroyed by D-53 Grenadier with Mini Grenade Launcher Performance ------------- Evolutions (0) 0 Regions Visited (2) 400 Robots Destroyed (18) 90 Value Destroyed (445) 445 Prototype IDs (2) 40 Alien Tech Used (0) 0 Bonus (0) 0 TOTAL SCORE: 975 Bonus ------- None Cogmind --------- Core Integrity 0/250 Matter 186/300 Energy 250/250 System Corruption 2% Temperature Cool (0) Movement Treading (160) Location -10/Mines Parts ------- > --- POWER (1) -------- Ion Engine > --- PROPULSION (2) --- Light Treads Aluminum Leg > --- UTILITY (2) ------ Medium Storage Unit Light Armor Plating > --- WEAPON (2) ------- (None) > --- INVENTORY (8) ---- Ion Engine Aluminum Leg Heat Sink Small Storage Unit Weapon Shielding Peak State ------------ > --- POWER ------------ Light Nuclear Core > --- PROPULSION ------- Light Treads Light Treads > --- UTILITY ---------- Small Storage Unit Medium Storage Unit > --- WEAPON ----------- Light Assault Rifle Light Assault Rifle > --- INVENTORY -------- Ion Engine Light Treads Light Treads Aluminum Leg Weapon Shielding Light Armor Plating Light Armor Plating Assault Rifle Grenade Launcher Mining Laser [Rating: 10] Favorites ----------- Power Light Ion Engine Engine Light Ion Engine Power Core Light Nuclear Core Propulsion Light Treads Treads Light Treads Leg Aluminum Leg Wheel Wheel Utility Medium Storage Unit Storage Medium Storage Unit Processor Seismic Analyzer Protection Weapon Shielding Weapon Light Assault Rifle Ballistic Gun Light Assault Rifle Launcher Grenade Launcher Special Weapon Mining Laser Build | -11 -10 -10 ------- Run | Scr Mat Min Slots Evolved . | . . . Power . | . . . Propulsion . | . . . Utility . | . . . Weapon . | . . . Parts Attached 27 | 8 7 12 Power 3 | 1 . 2 Engine 2 | 1 . 1 Core 1 | . . 1 Reactor . | . . . Propulsion 7 | 3 1 3 Treads 4 | 1 1 2 Leg 1 | . . 1 Wheel 2 | 2 . . Hover . | . . . Flight . | . . . Utility 7 | 2 2 3 Device . | . . . Storage 3 | 1 2 . Processor 1 | 1 . . Hackware . | . . . Protection 3 | . . 3 Artifact . | . . . Weapon 10 | 2 4 4 Energy Gun . | . . . Energy Cannon . | . . . Ballistic Gun 6 | 2 2 2 Ballistic Cannon . | . . . Launcher 3 | . 2 1 Special Weapon 1 | . . 1 Impact Weapon . | . . . Slashing Weapon . | . . . Piercing Weapon . | . . . Special Melee Weapon . | . . . Unidentified Prototypes . | . . . Parts Lost 10 | . . 10 Power 1 | . . 1 Propulsion 3 | . . 3 Utility 1 | . . 1 Weapon 5 | . . 5 Highest Loss Streak 5 | . . 5 Average Slot Usage (%) 96 | . 100 93 Engine 11 | . 14 9 Treads 23 | . 18 27 Wheel 4 | . 9 . Storage 17 | . 18 16 Processor 4 | . 9 . Protection 6 | . . 11 Ballistic Gun 20 | . 27 15 Special Weapon 5 | . . 9 Naked Turns . | . . . Heaviest Build 19 | 9 17 19 Greatest Support 40 | 20 40 40 Greatest Overweight (x) 2 | 2 1 . Average Overweight (x) . | . . . Largest Inventory Capacity 10 | 6 10 10 Average Capacity 7 | 5 7 8 Most Carried 10 | 6 10 10 Average Carried 6 | 4 7 7 Final Capacity 10 | 6 10 8 Final Carried 10 | 6 10 5 Class Distribution -------------------- 100% | Mutant Dominant Class ---------------- Mutant | -10/Materials Mutant | -10/Mines Resources | -11 -10 -10 ----------- Run | Scr Mat Min Matter Collected 561 | 294 81 186 Remotely . | . . . Salvage Created 504 | 68 159 277 Parts 25 | 5 7 13 Haulers Intercepted 1 | . 1 . Recyclers Shooed 2 | . 2 . Parts Field Recycled . | . . . Retrieved Matter . | . . . Parts Self-Destructed . | . . . Prevented . | . . . Kills | -11 -10 -10 ------- Run | Scr Mat Min Combat Hostiles Destroyed 27 | . 6 21 Guns 9 | . 2 7 Cannons 4 | . . 4 AOE 14 | . 4 10 Classes Destroyed 9 | 2 5 2 Worker 1 | . . 1 Builder 1 | . 1 . Tunneler 1 | 1 . . Hauler 1 | . 1 . Recycler 1 | 1 . . Watcher 1 | . 1 . Swarmer 3 | . 3 . Grunt 9 | . 3 6 Assembled 15 | . . 15 Best Kill Streak 16 | 1 6 16 Combat Bots Only 15 | . 4 15 Max Kills in Single Turn 4 | 1 2 4 Gunslinging . | . . . Exploded 4 | . 1 4 Melee . | . . . Uniques/NPCs Destroyed . | . . . Combat | -11 -10 -10 -------- Run | Scr Mat Min Damage Taken 1542 | . 189 1353 Core 260 | . 34 226 Absorbed by Shields . | . . . Core Remaining (%) 100 | 100 . . Volleys Fired 69 | 12 24 33 Largest 2 | 2 2 2 Hottest 120 | 40 40 120 Shots Fired 116 | 24 40 52 Gun 99 | 24 32 43 Cannon . | . . . Launcher 12 | . 8 4 Special 5 | . . 5 Kinetic 99 | 24 32 43 Thermal 5 | . . 5 Explosive 12 | . 8 4 Electromagnetic . | . . . Robot Hit Streak 10 | 7 8 10 Robot Miss Streak 4 | 4 2 2 Penetration Max . | . . . Secondary Targets 1 | . . 1 Max Gunslinging Chain 1 | . . 1 Shots Hit Robots 73 | 15 20 38 Core Hits 67 | 4 19 44 Critical Hits 1 | 1 . . Critical Kills . | . . . Critical Parts Destroyed 1 | 1 . . Melee Attacks . | . . . Impact . | . . . Slashing . | . . . Piercing . | . . . Sneak Attacks . | . . . Combat Hostiles . | . . . Follow-up Attacks . | . . . Damage Inflicted 2074 | 114 873 1087 Guns 606 | 114 164 328 Cannons . | . . . Explosions 1367 | . 709 658 Melee . | . . . Ramming 5 | . . 5 Kinetic 606 | 114 164 328 Thermal 421 | . 325 96 Explosive 1042 | . 384 658 Electromagnetic . | . . . Impact . | . . . Slashing . | . . . Piercing . | . . . Highest Corruption 2 | . . 2 Average Corruption 2 | . . 2 Corruption Purged . | . . . Effects 3 | . . 3 Message Errors 1 | . . 1 Data Loss (minor) 2 | . . 2 Overload Shots . | . . . Overflow Damage 71 | . 18 53 Projectiles . | . . . Explosions 71 | . 18 53 Melee . | . . . Knockbacks . | . . . Impact . | . . . Kinetic . | . . . Secondary . | . . . Self-Inflicted Damage 120 | . 12 108 Shots 6 | . 2 4 Rammed 2 | . . 2 Targets Rammed 2 | . . 2 Kicked . | . . . Crushed . | . . . Highest Temperature 52 | . 18 52 Average Temperature 15 | . 8 17 Received Heat Transfer 223 | . 93 130 Siege Activations . | . . . Robots Corrupted . | . . . Combat Hostiles . | . . . Parts Fried . | . . . Impact Corruptions . | . . . Robots Melted . | . . . Combat Hostiles . | . . . Parts Melted . | . . . Heat Transferred 400 | . 200 200 Parts Sabotaged . | . . . Parts Stolen . | . . . Parts Stripped . | . . . Power Chain Reactions . | . . . Missiles Intercepted . | . . . Alert | -11 -10 -10 ------- Run | Scr Mat Min Peak Influence 310 | 10 310 225 Initial 120 | . 6 120 Average 131 | 5 172 140 Maximum Alert Level 1 | . 1 1 Low Security (%) 75 | 100 44 93 Level 1 24 | . 55 6 Level 2 . | . . . Level 3 . | . . . Level 4 . | . . . Level 5 . | . . . High Security . | . . . Max Security . | . . . Squads Dispatched 2 | . 2 . Investigation 1 | . 1 . Extermination . | . . . Reinforcement 1 | . 1 . Assault . | . . . Garrison . | . . . Intercept . | . . . Construction Impeded . | . . . Haulers Reinforced . | . . . Stealth | -11 -10 -10 --------- Run | Scr Mat Min Distress Signals 3 | . 3 . Communications Jammed . | . . . Distress Signals . | . . . Times Spotted 42 | . 13 29 Peak Tracking Total 17 | . 5 17 Tactical Retreats 3 | . 1 2 Traps | -11 -10 -10 ------- Run | Scr Mat Min Traps Triggered . | . . . Indirectly . | . . . Trap Hack Attempts . | . . . Triggered . | . . . Disarmed . | . . . Reprogrammed . | . . . Reused . | . . . Traps Extracted . | . . . Installed . | . . . Triggered . | . . . Machines | -11 -10 -10 ---------- Run | Scr Mat Min Machines Disabled 2 | . 2 . Max in Single Turn 2 | . 2 . Machines Sabotaged . | . . . Garrisons Compromised . | . . . Overloaded Fab Kills . | . . . Fab Network Shutdowns . | . . . Hacking | -11 -10 -10 --------- Run | Scr Mat Min Machines Accessed 3 | . 3 . Terminals 3 | . 3 . Fabricators . | . . . Repair Stations . | . . . Recycling Units . | . . . Scanalyzers . | . . . Garrison Access . | . . . Total Hacks 8 | . 8 . Successful 4 | . 4 . Failed 4 | . 4 . Catastrophic 1 | . 1 . Database Lockouts . | . . . Manual 3 | . 3 . Terminals 8 | . 8 . Fabricators . | . . . Repair Stations . | . . . Recycling Units . | . . . Scanalyzers . | . . . Garrison Access . | . . . Terminal Hacks 4 | . 4 . Part Schematic 1 | . 1 . Prototype ID Bank 1 | . 1 . Locate Traps 2 | . 2 . Fabricator Hacks . | . . . Repair Station Hacks . | . . . Recycling Unit Hacks . | . . . Scanalyzer . | . . . Garrison Access Hacks . | . . . Unauthorized Hacks . | . . . Terminals . | . . . Fabricators . | . . . Repair Stations . | . . . Recycling Units . | . . . Scanalyzers . | . . . Garrison Access . | . . . Data Cores Recovered . | . . . Used . | . . . Hacking Detections 1 | . 1 . Full Trace Events 1 | . 1 . Feedback Events . | . . . Feedback Blocked . | . . . Robot Schematics Acquired . | . . . Robots Built . | . . . Matter . | . . . Time . | . . . Total Robot Build Rating . | . . . Part Schematics Acquired 1 | . 1 . Parts Built . | . . . Matter . | . . . Time . | . . . Total Part Build Rating . | . . . Parts Repaired . | . . . Time . | . . . Parts Recycled . | . . . Recycled Matter . | . . . Retrieved Matter . | . . . Retrieved Components . | . . . Parts Scanalyzed . | . . . Part Schematics Acquired . | . . . Parts Damaged . | . . . Bothacking | -11 -10 -10 ------------ Run | Scr Mat Min Used RIF Installer . | . . . Robots Hacked . | . . . Non-combat . | . . . Combat . | . . . Robot Hacks Applied . | . . . Relay Couplers Released . | . . . Robots Rewired . | . . . Allies Hacked . | . . . Hacks Repelled . | . . . Allies | -11 -10 -10 -------- Run | Scr Mat Min Total Allies . | . . . Largest Group . | . . . Highest-Rated Group . | . . . Highest-Rated Ally . | . . . Total Orders . | . . . Ally Attacks . | . . . Total Damage . | . . . Kills . | . . . Allies Corrupted . | . . . Allies Melted . | . . . Intel | -11 -10 -10 ------- Run | Scr Mat Min Robot Analysis Total . | . . . Derelict Logs Recovered 1 | . . 1 Drone Launches . | . . . Drone Recoveries . | . . . Exploration | -11 -10 -10 ------------- Run | Scr Mat Min Turns Passed 990 | 155 382 453 Spaces Moved 511 | 130 171 210 Core 8 | 8 . . Treads 282 | . 72 210 Legs . | . . . Wheels 221 | 122 99 . Hover . | . . . Flight . | . . . Fastest Speed 50 | 50 80 160 Average Speed 124 | 80 115 160 Slowest Speed 160 | 150 160 160 Overloaded Moves . | . . . Propulsion Burnouts . | . . . Robots Hopped . | . . . Cave-ins Triggered . | . . . Exploration Rate (%) 25 | 6 37 32 Regions Visited 2 Branch Regions 1 Pre-discovered Areas . | . . . Known Exits Taken . | . . . Unknown Exits Taken 2 | 1 1 . Scrap Searched . | . . . Spaces Dug 12 | . 12 . Terrain Destroyed 79 | . 43 36 Melee . | . . . Projectile . | . . . AOE 79 | . 43 36 Terrain Rammed . | . . . Walls Destroyed . | . . . Machines Disabled . | . . . Actions | -11 -10 -10 --------- Run | Scr Mat Min Total 746 | 157 321 268 Wait 118 | . 111 7 Move 509 | 129 170 210 Hop . | . . . Pick Up 16 | 7 6 3 Fast Attach 9 | 7 1 1 Attach 9 | 1 . 8 Detach . | . . . Swap 9 | . 6 3 Drop 5 | 1 3 1 Fire 69 | 12 24 33 Melee . | . . . Ram . | . . . Kick . | . . . Crush 2 | . . 2 Escape Stasis . | . . . Rewire . | . . . Trap . | . . . Miscellaneous . | . . . Route ------- -11/Scrapyard -10/Materials -10/Mines (discovered 1 exit: [*Mat]) History --------- Turn | Location | Event 26 | -11/Scrapyard | Discovered new exit (range 14) 156 | -11/Scrapyard | Entered Materials 355 | -10/Materials | Build established: Mutant 458 | -10/Materials | Discovered new exit (range 11) 538 | -10/Materials | Entered Mines 582 | -10/Mines | Discovered new exit (range 9) 585 | -10/Mines | Assembled infested the area 647 | -10/Mines | Core integrity fell below 50% 669 | -10/Mines | Lost 5 parts (1p1n3w) 671 | -10/Mines | Destroyed 15 combat bots 687 | -10/Mines | Learned Materials interactive machine intel 954 | -10/Mines | Core integrity fell below 20% 991 | -10/Mines | Lost 5 parts (2n1u2w) 991 | -10/Mines | Destroyed by D-53 Grenadier with Mini Grenade Launcher Last Messages --------------- 00951_ The unstable cave ceiling collapses. 00951_ Mining Laser destroyed. 00951_ Lgt. Treads destroyed. 00953_ The unstable cave ceiling collapses. 00953_ Assault Rifle destroyed. 00954_ U-05 Engineer builds a Wall. 00955_ D-53 Grenadier destroyed. 00956_ The unstable cave ceiling collapses. 00959_ U-05 Engineer lays Concrete. 00960_ The unstable cave ceiling collapses. 00960_ U-05 Engineer lays Concrete. 00960_ Lgt. Treads destroyed. 00960_ Lgt. Armor Plating destroyed. 00961_ The unstable cave ceiling collapses. 00961_ U-05 Engineer lays Concrete. 00967_ U-05 Engineer builds a Wall. 00969_ The unstable cave ceiling collapses. 00971_ U-05 Engineer builds a Wall. 00972_ The unstable cave ceiling collapses. 00991_ Slammed into as-52617. Map ----- +----------------------------------------------------+ | | | | | | | | | | | | | | | ?????????????????????????????????????????????????? | | ?????????????###############?????????????????????? | | ?????????????# #????????????????????## | | ?????????????# """ """ """ #????????????????????#= | | ?????????????# """ """ """ #???????????????????## | | ?????????##### """ """ """ #???################# | | ?????????# #???# | | ?????????# ## = #???# ############### | | ?????????# ############ ###???# #?????????????## | | ?????????# #?????###### #?????# #?????????????## | | ?????????# #?????# =#?????# #??????????????# | | ?????????# #?????# ######?????# #??????????????## | | ?????????# #?##??# #??????????# #???????????????# | | ?????????# # #??# #??????????# #???????????????? | | ????????## #??# #?????###### #???????????????? | | ????????# ##??# #?????# #???????????????? | | ????????# ##??## #?????# ######???????????????? | | ???????## ##???# ####### #????????????????????? | | ??????## ##????# d @a #????????????????????? | | ?????## #???### ##########????????????????????? | | ?????# #???# #???????????????????????????? | | ???? ???# #???????????????????????????? | | ??? ### #??????????????????????????? | | ??? #??????????????????????????? | | ??? # #??????????????????????????? | | ??? ?## #??????????????????????????? | | ?? #??# #??????????????????????????? | | ? ???# # #??????????????????????????? | | ??? ???# ###???????????????????????? | | ?????? ???# ##??????????????????????? | | ?? ### #= ##?????????????????????? | | ??? ## #?????????????????????? | | ??? ## #????? ###????????????? | | ??????????## # ### #???? ?????????????? | | ???????????#### # ##?? #??????????????? | | ??????????????## # ## ##?????????????? | | ???????????????#### ## ##????????????? | | ??????????????????## #?????????? | | ???????????????????# #????????????? | | ???????????????????### # # #????????????? | | ?????????????????????#### ## ##????????????? | | ????????????????????????? ### #####?????????????? | | ?????????????????????????###?#$#?????????????????? | +----------------------------------------------------+ Best States ------------- Heat Dissipation 25 Energy Generation 14 Energy Capacity 250 Matter Stores 300 Matter Capacity 300 Sight Range 16 Terrain Scan Density 60 Armor Coverage 150 Weapon Shielding 33 Evasion (%) 44 Recoil Reduction 2 Item Schematics ----------------- Hcp. Storage Unit | -10/Materials | Hacked Robot Schematics ------------------ None Fabricated ------------ Nothing Alien Tech Used ----------------- None Achievements -------------- None Challenges ------------ None Game ------ Seed IntegrityTerrabombField Manual? 0 Play Time 00:09:15 Cumulative 283.9 hours Start 2021.08.31 @ 22:14:48 End 2021.08.31 @ 22:24:16 Sessions 1 Manual Loads 0 Difficulty Rogue Special Mode None Game No. 291 Rogue 291 Adventurer 0 Explorer 0 Win Type - Total 4 Types 4/0/0/0/0/0/0/0/0 Lore% 64 Gallery% 79 Achievement% 61 Wizard Run 0 Options --------- ASCII 0 Keyboard 0 Movement Numpad Keybinds 0 Fullscreen 2 Font 24/Terminus Map View 76x50 Tactical HUD 1 Map Filters NONE Filters NONE Steam 1 RUN: d6fbc015-e7b4-4cd0-9063-8f6c0cfc4a83